fUST/lending_fUST_20260207
["ID","MTS","AMOUNT","RATE_DAILY","PERIOD"]
[404682510,1770438617147,-100.0,0.00021767,2]
[404682511,1770438619324,-1000.0,0.00021767,2]
[404682512,1770438619809,-100.0,0.00021767,2]
[404682513,1770438619831,-900.0,0.00021768,2]
[404682514,1770438620693,-1000.0,0.00021768,2]
[404682515,1770438621130,-1000.0,0.00021768,2]
[404682516,1770438621570,-1000.0,0.00021768,2]
[404682517,1770438622206,-1000.0,0.00021768,2]
[404682518,1770438622477,-1000.0,0.00021768,2]
[404682519,1770438622871,-1000.0,0.00021768,2]
[404682520,1770438623301,-1000.0,0.00021768,2]
[404682521,1770438623646,-1000.0,0.00021768,2]
[404682522,1770438624093,-1000.0,0.00021768,2]
[404682523,1770438624548,-23.05423021,0.00021768,2]
[404682524,1770438624570,-239.20894319,0.00021769,2]
[404682525,1770438624593,-430.57609774,0.00021769,2]
[404682526,1770438624615,-307.16072886,0.00021769,2]
[404682527,1770438624887,-458.30788934,0.00021769,2]
[404682528,1770438624907,-541.69211066,0.00021769,2]
[404682529,1770438625364,-653.15656056,0.00021769,2]
[404682530,1770438625384,-346.84343944,0.00021769,2]
[404682531,1770438625720,-48.99726552,0.00021769,2]
[404682532,1770438625740,-712.51326893,0.00021769,2]
[404682533,1770438625760,-238.48946555,0.00021769,2]
[404682534,1770438626177,-1000.0,0.00021769,2]
[404682535,1770438626630,-28.20079032,0.00021769,2]
[404682536,1770438626650,-971.79920968,0.00021769,2]
[404682537,1770438627235,-1000.0,0.00021769,2]
[404682538,1770438629057,-5.42511159,0.00021769,2]
[404682539,1770438629079,-571.00884561,0.0002196,10]
[404682540,1770438629101,-423.5660428,0.00021974,30]
[404682541,1770438629452,-576.4339572,0.00021974,30]
[404682589,1770438632408,-300.0,0.00022204,10]
[404682590,1770438632417,-300.0,0.00022204,10]
[404682591,1770438632426,-300.0,0.00022204,10]
[404682592,1770438632435,-100.0,0.00022204,10]
[404682595,1770438632446,-200.0,0.00022204,10]
[404682596,1770438632574,-300.0,0.00022204,10]
[404682597,1770438632584,-300.0,0.00022204,10]
[404682598,1770438632593,-300.0,0.00022204,10]
[404682599,1770438632603,-300.0,0.00022204,10]
[404682600,1770438632612,-300.0,0.00022204,10]
[404682601,1770438632621,-99.41077334,0.00022204,10]
[404682602,1770438632633,-200.58922666,0.00022204,10]
[404682603,1770438632643,-300.0,0.00022204,10]
[404682604,1770438632652,-300.0,0.00022204,10]
[404682605,1770438632662,-300.0,0.00022204,10]
[404682606,1770438632675,-300.0,0.00022204,10]
[404682607,1770438632684,-300.0,0.00022204,10]
[404682608,1770438632693,-1805.88677111,0.000229,2]
[404682609,1770438632702,-72.53675114,0.00023073,2]
[404682637,1770438638445,-427.46324886,0.00023073,2]
[404682639,1770438638454,-396.5371718,0.00023073,2]
[404682641,1770438638463,-500.0,0.00023073,2]
[404682642,1770438638472,-500.0,0.00023073,2]
[404682644,1770438638482,-500.0,0.00023073,2]
[404682645,1770438638492,-500.0,0.00023073,2]
[404682646,1770438638502,-500.0,0.00023073,2]
[404682647,1770438638511,-403.83880243,0.00023073,2]
[404682648,1770438638523,-96.16119757,0.00023073,2]
[404682649,1770438638533,-422.53734939,0.00023073,2]
[404682650,1770438638542,-500.0,0.00023073,2]
[404682651,1770438638552,-500.0,0.00023073,2]
[404682652,1770438638562,-500.0,0.00023073,2]
[404682653,1770438638571,-182.42444618,0.00023073,2]
[404682654,1770438638581,-319.20644225,0.00023073,2]
[404682655,1770438638590,-500.0,0.00023073,2]
[404682656,1770438638600,-500.0,0.00023073,2]
[404682657,1770438638609,-500.0,0.00023073,2]
[404682658,1770438638618,-10000.0,0.00023074,2]
[404682659,1770438638628,-151.0,0.00023074,2]
[404682660,1770438638637,-156.709384,0.00023074,2]
[404682661,1770438638647,-151.0,0.00023074,2]
[404682662,1770438638656,-151.0,0.00023074,2]
[404682663,1770438638666,-151.0,0.00023074,2]
[404682664,1770438638680,-151.0,0.00023074,2]
[404682665,1770438638689,-151.0,0.00023074,2]
[404682666,1770438638699,-600.0,0.00023372,10]
[404682667,1770438638709,-500.0,0.00023389,2]
[404682668,1770438638718,-151.0,0.00023599,2]
[404682669,1770438638728,-151.0,0.00023599,2]
[404682670,1770438638737,-151.0,0.00023599,2]
[404682671,1770438638751,-151.0,0.000236,2]
[404682672,1770438638761,-6355.8841784,0.00023601,2]
[404682673,1770438638771,-151.0,0.00023601,2]
[404682674,1770438638780,-1680.0,0.0002377,2]
[404682675,1770438638790,-151.0,0.0002399,2]
[404682676,1770438638799,-151.0,0.00023991,2]
[404682677,1770438638809,-1000.0,0.00023991,2]
[404682678,1770438638819,-761.528038,0.00023991,2]
[404682679,1770438638828,-151.0,0.00023991,2]
[404682680,1770438638837,-151.0,0.00023991,2]
[404682681,1770438638847,-500.0,0.0002409,2]
[404682682,1770438638856,-5248.716733,0.00024091,2]
[404682683,1770438638866,-151.0,0.00024091,2]
[404682684,1770438638875,-175.041477,0.00024091,2]
[404682685,1770438638885,-290.535158,0.00024091,2]
[404682686,1770438638894,-176.798885,0.00024113,2]
[404682687,1770438638904,-270.914796,0.00024113,2]
[404682688,1770438638913,-151.0,0.00024113,2]
[404682689,1770438638923,-191.004074,0.00024113,2]
[404682690,1770438638932,-5152.0,0.00024113,10]
[404682691,1770438638942,-154.408552,0.00024121,2]
[404682692,1770438638951,-324.87186156,0.00024122,2]
[404682693,1770438638961,-500.0,0.00024122,2]
[404682694,1770438638971,-500.0,0.00024122,2]
[404682695,1770438638980,-563.46285516,0.00024122,2]
[404682696,1770438638990,-2007.72143009,0.00024122,2]
[404682697,1770438639000,-151.0,0.00024122,2]
[404682698,1770438639010,-98010.68887366,0.00024123,2]
[404682699,1770438639027,-16460.97203402,0.00024123,2]
[404682700,1770438639038,-151.0,0.0002433,2]
[404682701,1770438639048,-153.93979081,0.0002433,2]
[404682702,1770438639059,-194.72792766,0.0002433,2]
[404682703,1770438639069,-201.93286099,0.0002433,2]
[404682704,1770438639079,-209.40437684,0.0002433,2]
[404682705,1770438639088,-217.15233878,0.0002433,2]
[404682706,1770438639098,-225.18697532,0.0002433,2]
[404682707,1770438639108,-233.51889341,0.0002433,2]
[404682708,1770438639118,-242.15909246,0.0002433,2]
[404682709,1770438639128,-251.11897888,0.0002433,2]
[404682710,1770438639138,-260.4103811,0.0002433,2]
[404682711,1770438639147,-270.0455652,0.0002433,2]
[404682712,1770438639157,-280.03725112,0.0002433,2]
[404682713,1770438639167,-290.39862941,0.0002433,2]
[404682714,1770438639176,-301.1433787,0.0002433,2]
[404682715,1770438639185,-475.21682614,0.0002433,2]
[404682716,1770438639195,-302.69085404,0.00024523,2]
[404682717,1770438639204,-500.0,0.00024572,2]
[404682718,1770438639214,-225.76510784,0.00024987,2]
[404682719,1770438639223,-416.9207443,0.00025111,2]
[404682720,1770438639233,-393.8518882,0.00025113,10]
[404682721,1770438639242,-758.21,0.000252,14]
[404682722,1770438639251,-155.24,0.000252,7]
[404682723,1770438639260,-67.14081126,0.000252,7]
[404682724,1770438639272,-94.18918874,0.000252,7]
[404682725,1770438639282,-344.5,0.00025482,10]
[404682726,1770438639293,-190.68408097,0.00025482,10]
[404682727,1770438639303,-160.0,0.00025487,2]
[404682728,1770438639312,-312.86898231,0.00025487,2]
[404682729,1770438639324,-428.76727893,0.00025487,2]
[404682730,1770438639333,-89.4464626,0.00025487,2]
[404682764,1770438640651,-558.36831587,0.00025487,2]
[404682766,1770438640661,-4139.52659502,0.000255,2]
[404682769,1770438640677,-5860.47340498,0.000255,2]
[404682771,1770438640686,-750.0,0.000256,5]
[404682773,1770438640696,-6371.15238575,0.000256,2]
[404682775,1770438640707,-720.0,0.00025709,10]
[404682777,1770438640716,-861.89214,0.00025738,2]
[404682779,1770438640726,-1040.37,0.000258,3]
[404682781,1770438640735,-320.0,0.00025958,2]
[404682783,1770438640744,-6620.16078562,0.00026,2]
[404682785,1770438640754,-500.0,0.00026022,7]
[404682787,1770438640763,-151.0,0.000262,17]
[404682789,1770438640772,-151.0,0.000264,18]
[404682791,1770438640781,-222.0,0.00026499,2]
[404682792,1770438640790,-1551.21572034,0.000265,2]
[404682795,1770438640802,-264.40910048,0.000265,2]
[404683111,1770438646408,-4293.33,0.0002649,10]
[404683112,1770438646417,-510.69000155,0.000265,2]
[404683113,1770438646429,-578.6470964,0.000265,2]
[404683119,1770438646523,-102720.19426532,0.000265,2]
[404683120,1770438646533,-266.0,0.000265,2]
[404683121,1770438646543,-5000.0,0.000265,2]
[404683122,1770438646553,-345.93240462,0.00026528,2]
[404683123,1770438646563,-1418.1894546,0.00026599,2]
[404683124,1770438646572,-151.0,0.000266,15]
[404683125,1770438646581,-151.0,0.000267,14]
[404683126,1770438646602,-151.0,0.000268,19]
[404683127,1770438646611,-861.89214,0.00026821,2]
[404683128,1770438646621,-151.0,0.000269,15]
[404683129,1770438646631,-250.0,0.00027,10]
[404683130,1770438646640,-600.0,0.00027029,30]
[404683131,1770438646650,-151.0,0.000271,20]
[404683132,1770438646659,-452.304529,0.000271,10]
[404683133,1770438646669,-103737.64067937,0.00027123,2]
[404683134,1770438646682,-1171.1470052,0.00027151,2]
[404683135,1770438646691,-151.0,0.000272,15]
[404683136,1770438646701,-226.534769,0.00027246,30]
[404683137,1770438646714,-316.4408401,0.00027268,2]
[404683138,1770438646724,-151.0,0.000273,16]
[404683139,1770438646733,-10596.0656822,0.00027345,2]
[404683140,1770438646743,-250.0,0.00027381,2]
[404683141,1770438646754,-250.0,0.00027381,2]
[404683142,1770438646764,-250.0,0.00027381,2]
[404683143,1770438646774,-250.0,0.00027381,2]
[404683144,1770438646784,-250.0,0.00027381,2]
[404683145,1770438646794,-250.0,0.00027381,2]
[404683146,1770438646803,-250.0,0.00027381,2]
[404683147,1770438646812,-151.0,0.00027397,2]
[404683148,1770438646823,-151.0,0.00027397,2]
[404683149,1770438646837,-151.0,0.00027397,2]
[404683150,1770438646853,-151.0,0.00027397,2]
[404683151,1770438646867,-151.0,0.00027397,2]
[404683152,1770438646878,-151.0,0.00027397,2]
[404683153,1770438646892,-151.0,0.00027397,2]
[404683154,1770438646905,-151.0,0.00027397,2]
[404683155,1770438646919,-151.0,0.00027397,2]
[404683156,1770438646932,-151.0,0.00027397,2]
[404683157,1770438646944,-151.0,0.00027397,2]
[404683158,1770438646957,-151.0,0.00027397,2]
[404683159,1770438646971,-151.0,0.00027397,2]
[404683160,1770438646984,-151.0,0.00027397,2]
[404683161,1770438646997,-151.0,0.00027397,2]
[404683162,1770438647009,-151.0,0.00027397,2]
[404683163,1770438647020,-151.0,0.00027397,2]
[404683164,1770438647034,-151.0,0.00027397,2]
[404683165,1770438647047,-233.736181,0.00027397,2]
[404683166,1770438647060,-151.0,0.00027397,2]
[404683167,1770438647070,-151.0,0.00027397,2]
[404683168,1770438647082,-151.0,0.00027397,2]
[404683169,1770438647094,-151.0,0.00027397,2]
[404683170,1770438647107,-151.0,0.00027397,2]
[404683171,1770438647121,-192.435436,0.00027397,2]
[404683172,1770438647133,-151.0,0.00027397,2]
[404683173,1770438647147,-151.0,0.00027397,2]
[404683174,1770438647162,-151.0,0.00027397,2]
[404683175,1770438647176,-151.0,0.00027397,2]
[404683176,1770438647186,-151.0,0.00027397,2]
[404683177,1770438647196,-151.0,0.00027397,2]
[404683178,1770438647207,-151.0,0.00027397,2]
[404683179,1770438647220,-151.0,0.00027397,2]
[404683180,1770438647234,-151.0,0.00027397,2]
[404683181,1770438647247,-151.0,0.00027397,2]
[404683182,1770438647258,-151.0,0.00027397,2]
[404683183,1770438647271,-151.0,0.00027397,2]
[404683184,1770438647283,-151.0,0.00027397,2]
[404683185,1770438647296,-197.834492,0.00027397,2]
[404683186,1770438647307,-151.0,0.00027397,2]
[404683187,1770438647318,-151.0,0.00027397,2]
[404683188,1770438647328,-165.068148,0.00027397,2]
[404683189,1770438647340,-152.25167,0.00027397,2]
[404683190,1770438647353,-151.0,0.00027397,2]
[404683191,1770438647365,-151.0,0.00027397,2]
[404683192,1770438647376,-151.0,0.00027397,2]
[404683193,1770438647388,-151.0,0.00027397,2]
[404683194,1770438647399,-151.0,0.00027397,2]
[404683195,1770438647411,-151.0,0.00027397,2]
[404683196,1770438647423,-151.0,0.00027397,2]
[404683197,1770438647435,-151.0,0.00027397,2]
[404683198,1770438647446,-151.0,0.00027397,2]
[404683199,1770438647457,-155.369182,0.00027397,2]
[404683200,1770438647469,-151.0,0.00027397,2]
[404683201,1770438647480,-151.0,0.00027397,2]
[404683202,1770438647492,-151.0,0.00027397,2]
[404683203,1770438647503,-151.0,0.00027397,2]
[404683204,1770438647514,-151.0,0.00027397,2]
[404683205,1770438647526,-151.0,0.00027397,2]
[404683206,1770438647538,-151.0,0.00027397,2]
[404683207,1770438647550,-278.629233,0.00027397,2]
[404683208,1770438647561,-151.0,0.00027397,2]
[404683209,1770438647573,-151.0,0.00027397,2]
[404683210,1770438647584,-151.0,0.00027397,2]
[404683211,1770438647596,-151.0,0.00027397,2]
[404683212,1770438647608,-151.0,0.00027397,2]
[404683213,1770438647619,-151.0,0.00027397,2]
[404683214,1770438647630,-151.0,0.00027397,2]
[404683215,1770438647641,-151.0,0.00027397,2]
[404683216,1770438647652,-157.442669,0.00027397,2]
[404683217,1770438647663,-151.0,0.00027397,2]
[404683218,1770438647676,-151.0,0.00027397,2]
[404683219,1770438647688,-151.0,0.00027397,2]
[404683220,1770438647701,-151.0,0.00027397,2]
[404683221,1770438647713,-518.676743,0.00027397,2]
[404683222,1770438647724,-518.676743,0.00027397,2]
[404683223,1770438647736,-518.676743,0.00027397,2]
[404683224,1770438647747,-151.0,0.00027397,2]
[404683225,1770438647759,-518.676743,0.00027397,2]
[404683226,1770438647770,-151.0,0.00027397,2]
[404683227,1770438647781,-518.676743,0.00027397,2]
[404683228,1770438647792,-151.0,0.00027397,2]
[404683229,1770438647803,-518.676743,0.00027397,2]
[404683230,1770438647815,-151.0,0.00027397,2]
[404683231,1770438647826,-518.676743,0.00027397,2]
[404683232,1770438647838,-151.0,0.00027397,2]
[404683233,1770438647849,-518.676743,0.00027397,2]
[404683234,1770438647860,-151.0,0.00027397,2]
[404683235,1770438647872,-518.676743,0.00027397,2]
[404683236,1770438647884,-202.483815,0.00027397,2]
[404683237,1770438647895,-518.676743,0.00027397,2]
[404683238,1770438647907,-518.676743,0.00027397,2]
[404683239,1770438647918,-518.676743,0.00027397,2]
[404683240,1770438647930,-518.676743,0.00027397,2]
[404683241,1770438647941,-518.676743,0.00027397,2]
[404683242,1770438647953,-518.676743,0.00027397,2]
[404683243,1770438647963,-518.676743,0.00027397,2]
[404683244,1770438647973,-518.676743,0.00027397,2]
[404683245,1770438647982,-518.676743,0.00027397,2]
[404683246,1770438647991,-518.676743,0.00027397,2]
[404683247,1770438648000,-518.676748,0.00027397,2]
[404683248,1770438648010,-215.347723,0.00027397,2]
[404683249,1770438648019,-215.347723,0.00027397,2]
[404683250,1770438648208,-215.347723,0.00027397,2]
[404683251,1770438648218,-215.347723,0.00027397,2]
[404683252,1770438648228,-215.347723,0.00027397,2]
[404683253,1770438648237,-215.347723,0.00027397,2]
[404683254,1770438648247,-215.347723,0.00027397,2]
[404683255,1770438648257,-215.347723,0.00027397,2]
[404683256,1770438648266,-215.347723,0.00027397,2]
[404683257,1770438648275,-215.347723,0.00027397,2]
[404683258,1770438648285,-215.347723,0.00027397,2]
[404683259,1770438648294,-215.347723,0.00027397,2]
[404683260,1770438648304,-215.347723,0.00027397,2]
[404683261,1770438648313,-215.347723,0.00027397,2]
[404683262,1770438648323,-215.347723,0.00027397,2]
[404683263,1770438648332,-215.347723,0.00027397,2]
[404683264,1770438648341,-215.347723,0.00027397,2]
[404683265,1770438648350,-215.347723,0.00027397,2]
[404683266,1770438648360,-215.347723,0.00027397,2]
[404683267,1770438648369,-215.347715,0.00027397,2]
[404683268,1770438648380,-457.299657,0.00027397,2]
[404683269,1770438648388,-457.299657,0.00027397,2]
[404683270,1770438648397,-457.299657,0.00027397,2]
[404683271,1770438648406,-457.299657,0.00027397,2]
[404683272,1770438648415,-457.299657,0.00027397,2]
[404683273,1770438648424,-457.299657,0.00027397,2]
[404683274,1770438648433,-457.299657,0.00027397,2]
[404683275,1770438648442,-457.299657,0.00027397,2]
[404683276,1770438648451,-457.299657,0.00027397,2]
[404683277,1770438648461,-457.299657,0.00027397,2]
[404683278,1770438648470,-457.299657,0.00027397,2]
[404683279,1770438648480,-457.299657,0.00027397,2]
[404683280,1770438648489,-457.299657,0.00027397,2]
[404683281,1770438648498,-457.299657,0.00027397,2]
[404683282,1770438648507,-457.299657,0.00027397,2]
[404683283,1770438648516,-457.299657,0.00027397,2]
[404683284,1770438648525,-457.299657,0.00027397,2]
[404683285,1770438648534,-254.095468,0.00027397,2]
[404683286,1770438648544,-457.299657,0.00027397,2]
[404683287,1770438648553,-254.095468,0.00027397,2]
[404683288,1770438648562,-457.299657,0.00027397,2]
[404683289,1770438648571,-254.095468,0.00027397,2]
[404683290,1770438648582,-457.299649,0.00027397,2]
[404683291,1770438648591,-254.095468,0.00027397,2]
[404683292,1770438648601,-254.095468,0.00027397,2]
[404683293,1770438648610,-254.095468,0.00027397,2]
[404683294,1770438648619,-254.095468,0.00027397,2]
[404683295,1770438648628,-254.095468,0.00027397,2]
[404683296,1770438648638,-254.095468,0.00027397,2]
[404683297,1770438648647,-254.095468,0.00027397,2]
[404683298,1770438648656,-254.095468,0.00027397,2]
[404683299,1770438648665,-254.095468,0.00027397,2]
[404683300,1770438648677,-254.095468,0.00027397,2]
[404683301,1770438648686,-254.095468,0.00027397,2]
[404683302,1770438648695,-254.095468,0.00027397,2]
[404683303,1770438648704,-254.095468,0.00027397,2]
[404683304,1770438648714,-254.095468,0.00027397,2]
[404683305,1770438648723,-254.095468,0.00027397,2]
[404683306,1770438648731,-254.095468,0.00027397,2]
[404683307,1770438648741,-254.095475,0.00027397,2]
[404683308,1770438648749,-151.0,0.00027397,2]
[404683309,1770438648759,-151.0,0.00027397,2]
[404683310,1770438648768,-151.0,0.00027397,2]
[404683311,1770438648776,-151.0,0.00027397,2]
[404683312,1770438648788,-151.0,0.00027397,2]
[404683313,1770438648798,-151.0,0.00027397,2]
[404683314,1770438648806,-151.0,0.00027397,2]
[404683315,1770438648815,-219.893908,0.00027397,2]
[404683316,1770438648825,-153.430402,0.00027397,2]
[404683317,1770438648835,-153.430402,0.00027397,2]
[404683318,1770438648844,-153.430402,0.00027397,2]
[404683319,1770438648853,-153.430402,0.00027397,2]
[404683320,1770438648862,-153.430402,0.00027397,2]
[404683321,1770438648871,-151.0,0.00027397,2]
[404683322,1770438648880,-153.430402,0.00027397,2]
[404683323,1770438648889,-177.489232,0.00027397,2]
[404683324,1770438648899,-153.430402,0.00027397,2]
[404683325,1770438648908,-153.430402,0.00027397,2]
[404683326,1770438648917,-153.430402,0.00027397,2]
[404683327,1770438648926,-153.430402,0.00027397,2]
[404683328,1770438648935,-153.430402,0.00027397,2]
[404683329,1770438648944,-153.430402,0.00027397,2]
[404683330,1770438648953,-153.430402,0.00027397,2]
[404683331,1770438648962,-153.430402,0.00027397,2]
[404683332,1770438648971,-153.430402,0.00027397,2]
[404683333,1770438648980,-153.430402,0.00027397,2]
[404683334,1770438648989,-153.430402,0.00027397,2]
[404683335,1770438648999,-153.430402,0.00027397,2]
[404683336,1770438649008,-153.430402,0.00027397,2]
[404683337,1770438649018,-153.430402,0.00027397,2]
[404683338,1770438649027,-271.863742,0.00027397,2]
[404683339,1770438649038,-271.863742,0.00027397,2]
[404683340,1770438649047,-271.863742,0.00027397,2]
[404683341,1770438649057,-271.863742,0.00027397,2]
[404683342,1770438649066,-271.863742,0.00027397,2]
[404683343,1770438649075,-271.863742,0.00027397,2]
[404683344,1770438649084,-271.863742,0.00027397,2]
[404683345,1770438649094,-271.863742,0.00027397,2]
[404683346,1770438649103,-271.863742,0.00027397,2]
[404683347,1770438649112,-271.863742,0.00027397,2]
[404683348,1770438649122,-271.863742,0.00027397,2]
[404683349,1770438649131,-271.863742,0.00027397,2]
[404683350,1770438649140,-271.863742,0.00027397,2]
[404683351,1770438649149,-271.863742,0.00027397,2]
[404683352,1770438649159,-271.863742,0.00027397,2]
[404683353,1770438649168,-271.863742,0.00027397,2]
[404683354,1770438649178,-271.863742,0.00027397,2]
[404683355,1770438649187,-271.863742,0.00027397,2]
[404683356,1770438649196,-271.863742,0.00027397,2]
[404683357,1770438649205,-271.863749,0.00027397,2]
[404683358,1770438649215,-157.304586,0.00027397,2]
[404683359,1770438649224,-157.304586,0.00027397,2]
[404683360,1770438649233,-157.304586,0.00027397,2]
[404683361,1770438649242,-157.304586,0.00027397,2]
[404683362,1770438649252,-157.304586,0.00027397,2]
[404683363,1770438649261,-157.304586,0.00027397,2]
[404683364,1770438649271,-157.304586,0.00027397,2]
[404683365,1770438649280,-157.304586,0.00027397,2]
[404683366,1770438649295,-157.304586,0.00027397,2]
[404683367,1770438649304,-157.304586,0.00027397,2]
[404683368,1770438649314,-157.304586,0.00027397,2]
[404683369,1770438649323,-157.304586,0.00027397,2]
[404683370,1770438649332,-157.304586,0.00027397,2]
[404683371,1770438649342,-157.304586,0.00027397,2]
[404683372,1770438649351,-157.304586,0.00027397,2]
[404683373,1770438649360,-157.304586,0.00027397,2]
[404683374,1770438649370,-157.304586,0.00027397,2]
[404683375,1770438649379,-157.304586,0.00027397,2]
[404683376,1770438649388,-157.304586,0.00027397,2]
[404683377,1770438649398,-157.304578,0.00027397,2]
[404683378,1770438649407,-934.75644123,0.00027397,2]
[404683383,1770438871024,-1000.0,0.00022867,2]
[404683384,1770438873094,-1000.0,0.00022867,2]
[404683385,1770438873426,-1000.0,0.00022867,2]
[404683386,1770438873739,-1000.0,0.00022867,2]
[404683387,1770438874052,-1000.0,0.00022867,2]
[404683388,1770438887035,-1000.0,0.00023,2]
[404683389,1770438888002,-1000.0,0.00023,2]
[404683390,1770438888335,-1000.0,0.00023,2]
[404683391,1770438888673,-1000.0,0.00023,2]
[404683392,1770438889018,-150.38010621,0.00023,2]
[404683393,1770438889040,-163.35471587,0.00023098,2]
[404683394,1770438889061,-244.07,0.000231,2]
[404683395,1770438889083,-178.37997436,0.00023472,2]
[404683396,1770438889105,-263.81520356,0.00023667,2]
[404683397,1770438889475,-236.18479644,0.00023667,2]
[404683400,1770438938017,234.7480175,0.0003,120]
[404683402,1770438980439,-300.0,0.00025204,2]
[404683403,1770438980461,-401.0,0.00025204,2]
[404683404,1770438980483,-150.0,0.00025205,2]
[404683405,1770438980503,-149.0,0.00025508,2]
[404683406,1770438982404,-592.63626124,0.00025508,2]
[404683407,1770438982425,-407.36373876,0.00025508,2]
[404683408,1770438982854,-1000.0,0.00025508,2]
[404683409,1770438983146,-1000.0,0.00025508,2]
[404683410,1770438983591,-1000.0,0.00025508,2]
[404683411,1770438983913,-1000.0,0.00025508,2]
[404683412,1770438984349,-1000.0,0.00025508,2]
[404683413,1770438984697,-1000.0,0.00025508,2]
[404683414,1770438985062,-1000.0,0.00025508,2]
[404683415,1770438985678,-1000.0,0.00025508,2]
[404683416,1770438985979,-1000.0,0.00025508,2]
[404683417,1770438986202,-356.85675376,0.00025508,2]
[404683418,1770438986222,-643.14324624,0.00025508,2]
[404683419,1770438986562,-398.52342043,0.00025508,2]
[404683420,1770438986583,-601.47657957,0.00025663,7]
[404683421,1770438987008,-263.30869026,0.00025663,7]
[404683423,1770439039065,-681.54,0.000265,14]
[404683424,1770439039087,-318.46,0.000265,2]
[404683425,1770439040968,-1000.0,0.000265,2]
[404683426,1770439041400,-1000.0,0.000265,2]
[404683427,1770439041851,-1000.0,0.000265,2]
[404683428,1770439042347,-1000.0,0.000265,2]
[404683429,1770439042913,-681.54,0.000265,2]
[404683430,1770439042933,-300.0,0.00026847,2]
[404683431,1770439042953,-18.46,0.00026848,2]
[404683432,1770439043381,-185.3313983,0.00026848,2]
[404683433,1770439043403,-500.0,0.00026848,2]
[404683434,1770439043426,-314.6686017,0.00026848,2]
[404683435,1770439043830,-185.3313983,0.00026848,2]
[404683436,1770439043852,-500.0,0.00026848,2]
[404683437,1770439043876,-314.6686017,0.00026848,2]
[404683438,1770439044301,-185.3313983,0.00026848,2]
[404683439,1770439044323,-500.72780748,0.00026848,2]
[404683440,1770439044343,-313.94079422,0.00026848,2]
[404683441,1770439045401,-500.0,0.00023143,2]
[404683442,1770439045422,-186.05920578,0.00026848,2]
[404683443,1770439045443,-313.94079422,0.00026848,2]
[404683444,1770439045604,-186.05920578,0.00026848,2]
[404683445,1770439045629,-544.98195831,0.00026848,2]
[404683446,1770439045650,-268.95883591,0.00026848,2]
[404683447,1770439048169,-231.04116409,0.00026848,2]
[404683448,1770439048191,-500.0,0.00026848,2]
[404683449,1770439048212,-268.95883591,0.00026848,2]
[404683450,1770439048629,-231.04116409,0.00026848,2]
[404683451,1770439048651,-300.0,0.00026848,2]
[404683452,1770439048671,-275.6,0.00026849,14]
[404683453,1770439048691,-193.35883591,0.00026849,2]
[404683454,1770439049166,-1000.0,0.00026849,2]
[404683455,1770439049591,-1000.0,0.00026849,2]
[404683456,1770439050283,-741.63626124,0.000265,2]
[404683457,1770439050305,-258.36373876,0.00026849,2]
[404683458,1770439050734,-1000.0,0.00026849,2]
[404683459,1770439051279,-1000.0,0.00026849,2]
[404683460,1770439089503,-1000.0,0.000265,2]
[404683461,1770439090963,-41.66666667,0.000265,2]
[404683462,1770439090982,-958.33333333,0.000265,2]
[404683463,1770439094942,-500.0,0.000265,2]
[404683468,1770439261302,7291.19,0.0001,2]
[404683476,1770439779497,2000.0,0.00026849,120]